Cogmind - Beta 14 @@@ ROGUE MODE // 2024.09.29 @ 00:20:30 Player: DZKane Result: Escaped! Performance ------------- Evolutions (9) 4500 Regions Visited (27) 5400 Robots Destroyed (232) 1160 Value Destroyed (9334) 9334 Prototype IDs (63) 1260 Alien Tech Used (1) 200 Bonus (8136) 8136 TOTAL SCORE: 29990 Bonus ------- High Alert Combat Kills 1377 Follower Combat Kills 1398 Entered Garrisons 200 Entered DSFs 500 Aligned with FarCom 300 Met Data Miner 300 Acquired ECA 300 Met Warlord at Base 500 MAIN.C Attacked Warlord 500 Win 3000 Friendly Fire -239 Cogmind --------- Core Integrity 1600/1600 Matter 290/300 Energy 355/365 System Corruption 0% Temperature Cool (18) Movement Flying (18) Location To Epsilon Eridani Parts ------- > --- POWER (3) -------- Improved Ion Engine Micro Antimatter Reactor Micro Antimatter Reactor > --- PROPULSION (8) --- Nuclear Pulse Array Nuclear Pulse Array Impulse Thruster Improved Diametric Drive Improved Diametric Drive Experimental Q-thruster > --- UTILITY (12) ----- Experimental Heat Sink Advanced Signal Interpreter Long-range Terrain Scanner Advanced Terrain Scan Processor Advanced Phase Shifter Experimental Cloaking Device Layered Light Armor Plating Graphene Brace Improved Hacking Suite Advanced Hacking Suite Advanced Hacking Suite Improved System Shield > --- WEAPON (2) ------- Enhanced Nova Cannon Phasing Sabre > --- INVENTORY (5) ---- Energy Well (350) Advanced Transmission Jammer ECM Suite Vortex Cannon (26) Improved Matter Neutralizer Peak State ------------ > --- POWER ------------ Improved Ion Engine Micro Antimatter Reactor Micro Antimatter Reactor > --- PROPULSION ------- Nuclear Pulse Array Nuclear Pulse Array Impulse Thruster Improved Diametric Drive Improved Diametric Drive Experimental Q-thruster > --- UTILITY ---------- Experimental Heat Sink Advanced Signal Interpreter Long-range Terrain Scanner Advanced Terrain Scan Processor Advanced Phase Shifter Experimental Cloaking Device Layered Light Armor Plating Graphene Brace Improved Hacking Suite Advanced Hacking Suite Advanced Hacking Suite Improved System Shield > --- WEAPON ----------- Enhanced Nova Cannon Phasing Sabre > --- INVENTORY -------- Energy Well Advanced Transmission Jammer ECM Suite Vortex Cannon Improved Matter Neutralizer [Rating: 170] Favorites ----------- Power Heavy Ion Engine Engine Heavy Ion Engine Power Core Light Nuclear Core Reactor Cold Fusion Reactor Propulsion Heavy Treads Treads Heavy Treads Leg Aluminum Leg Flight Unit Improved Diametric Drive Utility High-capacity Storage Unit Device Improved Weapon Cycler Storage High-capacity Storage Unit Processor Advanced Targeting Computer Hackware Advanced Hacking Suite Protection Improved Heavy Armor Plating Weapon Heavy Assault Cannon Energy Gun Heavy EM Pulse Gun Energy Cannon Heavy Phase Cannon Ballistic Gun Railgun Ballistic Cannon Heavy Assault Cannon Launcher Rocket Launcher Slashing Weapon Phasing Sabre Piercing Weapon Force Lance Build | -11 -10 -9 -9 -9 -8 -8 -7 -7 -6 -6 -6 -6 -6 -6 -5 -5 -5 -5 -5 -5 -5 -4 -4 -4 -3 -2 -1 ------- Run | Yrd Mat Mat Min Exi Min Mat Fac Gar Fac Was Fac Low Low Dat Pro Fac Was Fac Upp Upp War Pro Fac DSF Res Res Acc Slots Evolved 18 | . . 2 . . . 2 2 . 2 . . . . . . 2 . . . . . . 2 . 2 2 2 Power 2 | . . . . . . . . . 1 . . . . . . . . . . . . . . . . . 1 Propulsion 6 | . . 1 . . . 1 1 . . . . . . . . 1 . . . . . . 1 . 1 . . Utility 10 | . . 1 . . . 1 1 . 1 . . . . . . 1 . . . . . . 1 . 1 2 1 Weapon . | . . . . . . . . . . . . . . . . . . . . . . . . . . . . Parts Attached 262 | . 3 27 2 2 1 17 6 11 2 4 8 4 4 . 6 5 4 71 11 2 19 6 4 15 2 18 8 Power 32 | . . 4 . . . 4 . 1 1 1 1 . . . . . . 7 3 . 5 1 . . . 3 1 Engine 13 | . . 4 . . . 4 . . 1 . . . . . . . . 1 1 . 1 . . . . . 1 Core 10 | . . . . . . . . . . . . . . . . . . 5 2 . 2 1 . . . . . Reactor 9 | . . . . . . . . 1 . 1 1 . . . . . . 1 . . 2 . . . . 3 . Propulsion 60 | . . 10 1 . . 4 5 3 . 2 3 . . . . 1 1 13 1 . 3 3 2 4 . 4 . Treads 38 | . . 10 1 . . 4 5 3 . 2 3 . . . . 1 1 8 . . . . . . . . . Leg . | . . . . . . . . . . . . . . . . . . . . . . . . . . . . Wheel . | . . . . . . . . . . . . . . . . . . . . . . . . . . . . Hover . | . . . . . . . . . . . . . . . . . . . . . . . . . . . . Flight 22 | . . . . . . . . . . . . . . . . . . 5 1 . 3 3 2 4 . 4 . Utility 133 | . 3 6 1 1 1 8 1 7 1 1 4 4 4 . 4 4 1 44 5 1 7 . 1 9 2 9 4 Device 85 | . 1 . . . . 3 1 3 1 1 4 4 4 . 3 2 1 33 3 1 5 . . 6 1 6 2 Storage 17 | . 1 1 . 1 . 1 . . . . . . . . . . . 9 1 . 2 . . 1 . . . Processor 9 | . . 1 . . . 1 . 1 . . . . . . . 1 . 1 1 . . . 1 . 1 1 . Hackware 5 | . . . . . . . . . . . . . . . . 1 . . . . . . . . . 2 2 Protection 17 | . 1 4 1 . 1 3 . 3 . . . . . . 1 . . 1 . . . . . 2 . . . Artifact . | . . . . . . . . . . . . . . . . . . . . . . . . . . . . Weapon 37 | . . 7 . 1 . 1 . . . . . . . . 2 . 2 7 2 1 4 2 1 2 . 2 3 Energy Gun 4 | . . 4 . . . . . . . . . . . . . . . . . . . . . . . . . Energy Cannon 12 | . . . . . . . . . . . . . . . . . 1 5 . . 2 . . . . 1 3 Ballistic Gun 5 | . . 1 . . . . . . . . . . . . . . . . 1 . . 1 1 . . 1 . Ballistic Cannon 11 | . . 2 . 1 . 1 . . . . . . . . 1 . 1 1 1 1 2 . . . . . . Launcher 2 | . . . . . . . . . . . . . . . 1 . . 1 . . . . . . . . . Special Weapon . | . . . . . . . . . . . . . . . . . . . . . . . . . . . . Impact Weapon . | . . . . . . . . . . . . . . . . . . . . . . . . . . . . Slashing Weapon 2 | . . . . . . . . . . . . . . . . . . . . . . 1 . 1 . . . Piercing Weapon 1 | . . . . . . . . . . . . . . . . . . . . . . . . 1 . . . Special Melee Weapon . | . . . . . . . . . . . . . . . . . . . . . . . . . . . . Unidentified Prototypes 19 | . . . . . . 1 . . . . 1 . . . . . 1 2 1 1 7 . 1 . . 3 1 Corrupted Parts 1 | . . . . . . . . . . . . . . . . . . 1 . . . . . . . . . System Corruption 6 | . . . . . . . . . . . . . . . . . . 6 . . . . . . . . . Parts Lost 39 | . . 2 . . . . . 3 . . . . . . 3 . . 24 1 . . 5 . . . 1 . Power 6 | . . . . . . . . . . . . . . . . . . 4 . . . 2 . . . . . Propulsion 15 | . . . . . . . . 2 . . . . . . . . . 9 1 . . 3 . . . . . Utility 11 | . . 1 . . . . . 1 . . . . . . 2 . . 6 . . . . . . . 1 . Weapon 7 | . . 1 . . . . . . . . . . . . 1 . . 5 . . . . . . . . . Highest Loss Streak 7 | . . 2 . . . . . 2 . . . . . . 2 . . 7 2 . . 3 . . . 1 . To Critical Strikes . | . . . . . . . . . . . . . . . . . . . . . . . . . . . . Average Slot Usage (%) 83 | . 99 94 88 88 88 89 92 87 86 76 72 72 73 73 73 70 70 74 85 87 92 88 87 86 76 88 89 Engine 6 | . 14 11 11 11 11 9 7 2 6 6 6 6 6 6 6 5 5 2 3 5 4 1 . . . . 1 Reactor 3 | . . . . . . . . 4 6 6 6 6 6 6 6 5 5 4 . . 3 1 . . . 5 8 Treads 21 | . . 31 33 33 33 35 38 37 33 23 19 20 20 20 20 17 17 17 . . . . . . . . . Flight 4 | . . . . . . . . . . . . . . . . . . . 29 29 29 28 31 29 23 24 24 Device 14 | . 8 . . . . 8 15 14 20 20 19 19 20 20 20 17 17 16 28 28 28 29 26 21 19 19 20 Storage 7 | . 14 11 11 11 11 9 7 7 6 6 6 6 6 6 6 5 5 6 4 5 5 5 5 5 4 4 . Processor 5 | . . 9 11 11 11 9 7 3 . . . . . . . 5 5 7 5 5 5 5 8 10 13 10 8 Protection 6 | . 4 12 11 11 11 8 7 7 6 6 6 6 6 6 6 5 5 2 . . . . . 4 4 4 4 Energy Gun 1 | . 14 12 . . . . . . . . . . . . . . . . . . 4 . . . . . . Ballistic Cannon 5 | . . 4 11 11 11 9 7 7 6 6 6 6 6 6 5 5 5 3 . . 4 . . . . . . Peak Build Rating 170 | 6 8 18 19 19 18 30 39 52 56 73 78 79 77 77 77 87 94 99 74 75 98 100 102 116 117 163 170 Average Rating 64 | 6 7 14 18 18 18 27 33 46 55 68 72 77 76 77 76 85 90 89 65 70 92 94 99 107 108 147 168 On Entrance 63 | 6 6 8 18 19 19 18 30 39 50 56 73 77 77 77 77 76 86 92 68 70 70 96 95 102 113 108 163 Naked Turns . | . . . . . . . . . . . . . . . . . . . . . . . . . . . . Heaviest Build 105 | 14 20 44 44 64 60 67 69 82 92 96 96 94 94 94 97 97 97 105 27 27 34 34 24 27 27 49 51 Greatest Support 210 | 20 20 63 63 63 63 85 111 111 106 162 170 170 170 170 170 210 210 210 29 29 35 39 43 49 27 53 53 Greatest Overweight (x) 2 | . . 1 . 1 . . . . . . . . . . . . . 2 . . 1 . . . . . . Average Overweight (x) . | . . . . . . . . . . . . . . . . . . . . . . . . . . . . Largest Inventory Capacity 25 | 8 10 15 15 20 20 20 20 20 20 20 20 20 20 20 20 20 20 25 20 5 5 5 5 5 5 5 5 Average Capacity 16 | 8 9 14 15 17 20 20 20 20 20 20 20 20 20 20 20 20 20 19 5 5 5 5 5 5 5 5 5 Most Carried 21 | 6 10 15 15 18 18 20 20 20 20 20 20 20 20 20 20 16 20 21 14 5 5 5 5 5 5 5 5 Average Carried 15 | 6 8 13 14 16 18 19 18 19 18 19 19 19 20 20 17 12 18 18 4 4 4 5 4 4 4 4 4 Final Capacity 20 | 8 10 15 15 20 20 20 20 20 20 20 20 20 20 20 20 20 20 20 5 5 5 5 5 5 5 5 5 Final Carried 20 | 6 10 15 15 18 18 20 20 19 20 20 20 20 20 20 15 13 20 14 5 5 5 5 5 5 5 5 5 Class Distribution -------------------- 69% | Mutant 13% | Scavenger-Mutant 7% | Hacker-Ninja 3% | Scavenger-Sprinter 3% | Commander-Sprinter Dominant Class ---------------- Mutant | -10/Materials Mutant | -9/Materials Mutant | -9/Mines Mutant | -9/Exiles Mutant | -8/Mines Mutant | -8/Materials Mutant | -7/Factory Mutant | -7/Garrison Mutant | -6/Factory Scavenger-Mutant | -6/Waste Mutant | -6/Factory Mutant | -6/Lower Caves Mutant | -6/Lower Caves Mutant | -6/Data Miner Mutant | -5/Proximity Caves Scavenger-Mutant | -5/Factory Mutant | -5/Waste Mutant | -5/Factory Scavenger-Sprinter | -5/Upper Caves Scavenger-Sprinter | -5/Upper Caves Commander-Sprinter | -5/Warlord Derelict-Sprinter | -4/Proximity Caves Derelict-Sprinter | -4/Factory Scavenger-Ninja | -4/DSF Infiltrator-Ninja | -3/Research Hacker-Ninja | -2/Research Hacker-Ninja | -1/Access Resources | -11 -10 -9 -9 -9 -8 -8 -7 -7 -6 -6 -6 -6 -6 -6 -5 -5 -5 -5 -5 -5 -5 -4 -4 -4 -3 -2 -1 ----------- Run | Yrd Mat Mat Min Exi Min Mat Fac Gar Fac Was Fac Low Low Dat Pro Fac Was Fac Upp Upp War Pro Fac DSF Res Res Acc Matter Collected 7612 | 200 49 594 46 40 . 1081 . 621 409 170 834 290 224 . 510 . 138 1480 99 3 258 60 . . . 436 70 Remotely 1089 | . . . . . . . . . . . . 71 202 . 110 . . 706 . . . . . . . . . Salvage Created 7660 | . 112 1067 . . . 1431 . 421 358 . 767 378 170 . 83 . 52 2370 . . . 151 . . . 131 169 Parts 369 | . 10 80 . . . 64 . 22 20 . 26 15 10 . 7 . 1 91 . . . 10 . . . 2 11 Haulers Intercepted 10 | . 1 3 . . . 4 . . . . 1 . . . . . . 1 . . . . . . . . . Recyclers Shooed 11 | . . . . . . 5 . . 5 . . . . . . . . 1 . . . . . . . . . Parts Field Recycled . | . . . . . . . . . . . . . . . . . . . . . . . . . . . . Retrieved Matter . | . . . . . . . . . . . . . . . . . . . . . . . . . . . . Parts Self-Destructed 39 | . . . . . . . . . . . . 17 10 . 5 . . . . . . 7 . . . . . Prevented 2 | . . . . . . . . . . . . . . . . . . . 2 . . . . . . . . Kills | -11 -10 -9 -9 -9 -8 -8 -7 -7 -6 -6 -6 -6 -6 -6 -5 -5 -5 -5 -5 -5 -5 -4 -4 -4 -3 -2 -1 ------- Run | Yrd Mat Mat Min Exi Min Mat Fac Gar Fac Was Fac Low Low Dat Pro Fac Was Fac Upp Upp War Pro Fac DSF Res Res Acc Combat Hostiles Destroyed 178 | . 3 26 . . . 31 . 16 10 . 11 9 7 . 6 . . 51 . . . 6 . . . 2 . Melee 9 | . . . . . . . . . . . 1 . . . . . . 1 . . . 6 . . . 1 . Guns 13 | . 2 10 . . . . . . . . . . . . . . . . . . . . . . . 1 . Cannons 138 | . . 13 . . . 31 . 16 10 . 10 9 7 . 2 . . 40 . . . . . . . . . AOE 16 | . 1 3 . . . . . . . . . . . . 4 . . 8 . . . . . . . . . Classes Destroyed 20 | . 3 6 . . . 4 . 2 . . 1 1 . . . . . 2 . . . 1 . . . . . Worker 15 | . . 3 . . . 4 . . 4 . 4 . . . . . . . . . . . . . . . . Builder 8 | . . 1 . . . 2 . . 2 . 1 . . . . . . 1 . . . . . . . . 1 Tunneler 1 | . . . . . . . . . . . . . . . . . . 1 . . . . . . . . . Hauler 10 | . 1 3 . . . 4 . . . . 1 . . . . . . 1 . . . . . . . . . Recycler 10 | . . 1 . . . 4 . . . . 2 . . . . . . 2 . . . . . . . . 1 Mechanic 1 | . . . . . . . . . . . . . . . . . . 1 . . . . . . . . . Operator 2 | . . 2 . . . . . . . . . . . . . . . . . . . . . . . . . Drone 1 | . . . . . . . . . . . . . . . . . . . . . . 1 . . . . . Watcher 7 | . 2 3 . . . 2 . . . . . . . . . . . . . . . . . . . . . Swarmer 53 | . 3 11 . . . 3 . 6 3 . . 1 4 . 4 . . 12 . . . 5 . . . 1 . Cutter 3 | . . . . . . . . 3 . . . . . . . . . . . . . . . . . . . Grunt 58 | . . 9 . . . 17 . 3 6 . 3 3 . . 1 . . 16 . . . . . . . . . Brawler 2 | . . . . . . 1 . . . . . 1 . . . . . . . . . . . . . . . Duelist 5 | . . . . . . 2 . . 1 . 1 1 . . . . . . . . . . . . . . . Sentry 20 | . . 6 . . . 5 . 3 . . 2 1 . . . . . 2 . . . . . . . 1 . Specialist 6 | . . . . . . 2 . . . . . . . . . . . 4 . . . . . . . . . Hunter 6 | . . . . . . . . . . . . 1 3 . . . . 2 . . . . . . . . . Programmer 15 | . . . . . . . . . . . 2 1 . . . . . 12 . . . . . . . . . Heavy 4 | . . . . . . 1 . . . . 1 . . . . . . 2 . . . . . . . . . Behemoth 2 | . . . . . . . . 1 . . . . . . 1 . . . . . . . . . . . . Wasp 1 | . . . . . . . . . . . 1 . . . . . . . . . . . . . . . . Thug 1 | . . . . . . . . . . . 1 . . . . . . . . . . . . . . . . Guerrilla 1 | . . . . . . . . . . . . . . . . . . 1 . . . . . . . . . Best Kill Streak 10 | . 4 5 . . . 8 . 5 10 . 10 6 4 . 4 . . 10 . . . 2 . . . 1 1 Combat Bots Only 10 | . 3 4 . . . 6 . 5 7 . 2 6 4 . 4 . . 10 . . . 2 . . . 1 . Max Kills in Single Turn 5 | . 1 5 . . . 2 . 1 1 . 4 1 1 . 2 . . 4 . . . 1 . . . 1 1 Gunslinging 1 | . . 1 . . . . . . . . . . . . . . . . . . . . . . . . . Exploded 4 | . 1 2 . . . . . . . . . . . . 2 . . 4 . . . . . . . . . Melee 1 | . . . . . . . . . . . 1 . . . . . . 1 . . . 1 . . . 1 . Uniques/NPCs Destroyed . | . . . . . . . . . . . . . . . . . . . . . . . . . . . . Combat | -11 -10 -9 -9 -9 -8 -8 -7 -7 -6 -6 -6 -6 -6 -6 -5 -5 -5 -5 -5 -5 -5 -4 -4 -4 -3 -2 -1 -------- Run | Yrd Mat Mat Min Exi Min Mat Fac Gar Fac Was Fac Low Low Dat Pro Fac Was Fac Upp Upp War Pro Fac DSF Res Res Acc Hostile Shots Fired 1185 | . 14 134 . . . 111 . 97 61 . 102 61 54 . 102 . . 357 13 . . 77 . . . 2 . Missed 329 | . 1 30 . . . 33 . 34 14 . 38 15 12 . 31 . . 76 9 . . 35 . . . 1 . Damage Taken 13414 | . 139 1037 . . . 937 . 1146 637 . 612 544 507 . 943 . . 6068 81 . 46 697 . . . 20 . Core 1336 | . 20 56 . . . 152 . 73 23 . 45 21 11 . 44 . . 718 . . . 173 . . . . . Absorbed by Shields 2222 | . . . . . . 307 . 81 231 . 253 199 184 . 372 . . 595 . . . . . . . . . Reduced by Siege Mode 688 | . . . . . . . . . . . . 48 36 . 55 . . 549 . . . . . . . . . Redirected to Shielding 8 | . 2 6 . . . . . . . . . . . . . . . . . . . . . . . . . Ignored by Resistances 145 | . . . . . . . . . . . . . . . . . . 145 . . . . . . . . . Regen/Repaired (Parts) 1984 | . . . . . . 53 . . . 441 849 315 . . . . . 326 . . . . . . . . . Core Remaining (%) 84 | 100 92 . . . 86 72 . 89 . . . . . . 83 . . . . . . 10 . 100 100 100 100 Volleys Fired 682 | . 10 84 1 . . 113 . 64 53 . 57 35 18 . 27 . 5 197 . 1 . . . . . 15 2 Largest 2 | . 2 2 1 . . 1 . 1 1 . 1 1 1 . 1 . 1 2 . 1 . . . . . 1 1 Hottest 180 | . 70 90 60 . . 60 . 60 60 . 60 60 60 . 60 . 60 180 . 57 . . . . . 120 120 Shots Fired 794 | . 20 137 1 . . 113 . 63 53 . 57 35 18 . 27 . 5 246 1 1 . . . . . 15 2 Gun 133 | . 20 106 . . . . . . . . . . . . . . . . 1 . . . . . . 6 . Cannon 643 | . . 31 1 . . 113 . 63 53 . 57 35 18 . 23 . 5 232 . 1 . . . . . 9 2 Launcher 18 | . . . . . . . . . . . . . . . 4 . . 14 . . . . . . . . . Special . | . . . . . . . . . . . . . . . . . . . . . . . . . . . . Kinetic 514 | . 10 52 1 . . 113 . 63 53 . 57 35 18 . 23 . 5 76 1 1 . . . . . 6 . Thermal 151 | . 10 . . . . . . . . . . . . . . . . 130 . . . . . . . 9 2 Explosive 18 | . . . . . . . . . . . . . . . 4 . . 14 . . . . . . . . . Electromagnetic 111 | . . 85 . . . . . . . . . . . . . . . 26 . . . . . . . . . Robot Hit Streak 30 | . 3 12 . . . 14 . 5 11 . 13 9 9 . 11 . 12 30 . . . . . . . 1 . Robot Miss Streak 7 | . 2 6 . . . 2 . 5 3 . 7 2 1 . 1 . . 3 . . . . . . . 3 . Penetration Max 1 | . . . . . . 1 . . 1 . . . . . . . . 1 . . . . . . . . . Secondary Targets 3 | . 1 2 . . . . . . . . . . . . . . . . . . . . . . . . . Max Gunslinging Chain 1 | . 1 1 . . . . . . . . . . . . . . . . . . . . . . . . . Shots Hit Robots 559 | . 11 77 . . . 86 . 32 38 . 37 22 16 . 23 . 1 200 . . . 10 . . . 3 3 Core Hits 274 | . 7 40 . . . 39 . 16 15 . 18 8 9 . 9 . . 104 . . . 5 . . . 2 2 Critical Kills 2 | . . . . . . . . . . . . . . . . . . 1 . . . . . . . 1 . Critical Parts Destroyed . | . . . . . . . . . . . . . . . . . . . . . . . . . . . . Critical Strikes 46 | . . 4 . . . 10 . 4 7 . 3 4 5 . 1 . . 6 . . . . . . . 2 . Meltdown 1 | . . . . . . . . . . . . . . . . . . 1 . . . . . . . . . Destroy 1 | . . . . . . . . . . . . . . . . . . . . . . . . . . 1 . Blast 43 | . . 4 . . . 10 . 4 7 . 3 4 5 . 1 . . 5 . . . . . . . . . Sever 1 | . . . . . . . . . . . . . . . . . . . . . . . . . . 1 . Melee Attacks 48 | . . . . . . . . . . . . . . . . . . . . . . 22 . . 2 16 8 Impact . | . . . . . . . . . . . . . . . . . . . . . . . . . . . . Slashing 48 | . . . . . . . . . . . . . . . . . . . . . . 22 . . 2 16 8 Piercing . | . . . . . . . . . . . . . . . . . . . . . . . . . . . . Sneak Attacks 4 | . . . . . . . . . . . . . . . . . . . . . . 1 . . . . 3 Combat Hostiles 1 | . . . . . . . . . . . . . . . . . . . . . . 1 . . . . . Follow-up Attacks . | . . . . . . . . . . . . . . . . . . . . . . . . . . . . Damage Inflicted 27991 | . 182 2894 . . . 4875 . 1597 2178 . 2548 1012 649 . 1544 . 75 9537 . . . 524 . . . 91 285 Guns 982 | . 139 835 . . . . . . . . . . . . . . . . . . . . . . . 8 . Cannons 22168 | . . 1263 . . . 4875 . 1597 2178 . 2049 1012 649 . 1139 . 75 7331 . . . . . . . . . Explosions 3938 | . 43 796 . . . . . . . . 493 . . . 405 . . 2201 . . . . . . . . . Melee 892 | . . . . . . . . . . . . . . . . . . . . . . 524 . . . 83 285 Ramming 11 | . . . . . . . . . . . 6 . . . . . . 5 . . . . . . . . . Kinetic 17986 | . 103 1421 . . . 4875 . 1597 2178 . 2049 1012 649 . 1139 . 75 2880 . . . . . . . 8 . Thermal 5490 | . 36 796 . . . . . . . . 493 . . . . . . 4165 . . . . . . . . . Explosive 2454 | . . . . . . . . . . . . . . . 405 . . 2049 . . . . . . . . . Electromagnetic 1158 | . 43 677 . . . . . . . . . . . . . . . 438 . . . . . . . . . Impact . | . . . . . . . . . . . . . . . . . . . . . . . . . . . . Slashing 892 | . . . . . . . . . . . . . . . . . . . . . . 524 . . . 83 285 Piercing . | . . . . . . . . . . . . . . . . . . . . . . . . . . . . Highest Corruption 24 | . 1 . . . . 1 . 3 . . . . . . . . . 21 24 24 24 . . . . . . Average Corruption 7 | . 1 . . . . 1 . 3 . . . . . . . . . 10 23 24 24 . . . . . . Corruption Purged . | . . . . . . . . . . . . . . . . . . . . . . . . . . . . Corruption Blocked . | . . . . . . . . . . . . . . . . . . . . . . . . . . . . Effects 90 | . 1 . . . . 8 . 15 . . . . . . . . . 56 7 3 . . . . . . . Message Errors 22 | . . . . . . 3 . 2 . . . . . . . . . 16 1 . . . . . . . . Matter Fused 20 | . 1 . . . . 1 . 6 . . . . . . . . . 9 3 . . . . . . . . Heat Flow Errors 8 | . . . . . . . . 1 . . . . . . . . . 6 1 . . . . . . . . Energy Discharges 9 | . . . . . . . . 1 . . . . . . . . . 7 . 1 . . . . . . . Parts Rejected 2 | . . . . . . 1 . . . . . . . . . . . 1 . . . . . . . . . Parts Fused 1 | . . . . . . . . . . . . . . . . . . 1 . . . . . . . . . Data Loss (minor) 8 | . . . . . . 1 . 3 . . . . . . . . . 3 . 1 . . . . . . . Data Loss (major) 9 | . . . . . . 1 . 1 . . . . . . . . . 5 1 1 . . . . . . . Misfires 1 | . . . . . . . . . . . . . . . . . . . 1 . . . . . . . . Alerts 4 | . . . . . . 1 . . . . . . . . . . . 3 . . . . . . . . . Misdirections 1 | . . . . . . . . . . . . . . . . . . 1 . . . . . . . . . Weapon Failures 5 | . . . . . . . . 1 . . . . . . . . . 4 . . . . . . . . . Overload Shots . | . . . . . . . . . . . . . . . . . . . . . . . . . . . . Overflow Damage 2121 | . . 225 . . . 474 . 64 301 . 280 84 7 . 35 . 24 452 . . . 112 . . . . 63 Projectiles 1644 | . . 76 . . . 474 . 64 301 . 210 84 7 . . . 24 404 . . . . . . . . . Explosions 302 | . . 149 . . . . . . . . 70 . . . 35 . . 48 . . . . . . . . . Melee 175 | . . . . . . . . . . . . . . . . . . . . . . 112 . . . . 63 Knockbacks 111 | . . 5 . . . 29 . 7 37 . 2 6 3 . . . . 22 . . . . . . . . . Impact . | . . . . . . . . . . . . . . . . . . . . . . . . . . . . Kinetic 93 | . . 4 . . . 24 . 7 28 . 2 4 3 . . . . 21 . . . . . . . . . Secondary 18 | . . 1 . . . 5 . . 9 . . 2 . . . . . 1 . . . . . . . . . Self-Inflicted Damage 210 | . 35 7 . . . . . . . . . . . . . . . 168 . . . . . . . . . Shots 10 | . 1 1 . . . . . . . . . . . . . . . 8 . . . . . . . . . Rammed 3 | . . . 1 . . . . . . . 1 . . . . . . 1 . . . . . . . . . Targets Rammed 5 | . . . 1 . . . . . . . 2 . . . . . . 2 . . . . . . . . . Kicked . | . . . . . . . . . . . . . . . . . . . . . . . . . . . . Crushed 2 | . . . . . . . . . . . 1 . . . . . . 1 . . . . . . . . . Highest Temperature 633 | . 45 240 20 . . 217 . 182 25 . . . . . 204 . . 633 67 . 156 96 54 . . 313 38 Average Temperature 79 | . 16 59 11 . . 60 . 80 12 . . . . . 92 . . 149 38 . 56 23 24 . . 102 16 Received Heat Transfer 2320 | . . 231 . . . 401 . 85 239 . 70 134 . . 309 . . 806 27 . . 18 . . . . . Effects 26 | . . . . . . 3 . . . . . . . . . . . 23 . . . . . . . . . Shutdowns 6 | . . . . . . . . . . . . . . . . . . 6 . . . . . . . . . Interference 6 | . . . . . . 3 . . . . . . . . . . . 3 . . . . . . . . . Matter Decay 3 | . . . . . . . . . . . . . . . . . . 3 . . . . . . . . . Short Circuit 1 | . . . . . . . . . . . . . . . . . . 1 . . . . . . . . . Damage (minor) 3 | . . . . . . . . . . . . . . . . . . 3 . . . . . . . . . Damage (major) 4 | . . . . . . . . . . . . . . . . . . 4 . . . . . . . . . Damage (core) 3 | . . . . . . . . . . . . . . . . . . 3 . . . . . . . . . Siege Activations 22 | . . . . . . . . . . . . 2 2 . 2 . . 16 . . . . . . . . . Total Turns 524 | . . . . . . . . . . . . 45 29 . 58 . . 392 . . . . . . . . . Longest Duration 74 | . . . . . . . . . . . . 26 16 . 57 . . 74 . . . . . . . . . Robots Corrupted 4 | . . . . . . 2 . . 1 . . . . . . . . 1 . . . . . . . . . Combat Hostiles 1 | . . . . . . . . . . . . . . . . . . 1 . . . . . . . . . Parts Fried 14 | . . . . . . 6 . . 2 . . . . . . . . 6 . . . . . . . . . Impact Corruptions 5 | . . . . . . 3 . . 1 . . 1 . . . . . . . . . . . . . . . Robots Melted 1 | . . . . . . . . . . . . . . . . . . 1 . . . . . . . . . Combat Hostiles 1 | . . . . . . . . . . . . . . . . . . 1 . . . . . . . . . Parts Melted 6 | . . . . . . . . . . . . . . . . . . 6 . . . . . . . . . Heat Transferred 5219 | . 111 700 . . . . . . . . 300 . . . . . . 4108 . . . . . . . . . Parts Sabotaged . | . . . . . . . . . . . . . . . . . . . . . . . . . . . . Parts Stolen . | . . . . . . . . . . . . . . . . . . . . . . . . . . . . Parts Stripped . | . . . . . . . . . . . . . . . . . . . . . . . . . . . . Power Chain Reactions 6 | . . 5 . . . . . . . . . . . . . . . 1 . . . . . . . . . Alert | -11 -10 -9 -9 -9 -8 -8 -7 -7 -6 -6 -6 -6 -6 -6 -5 -5 -5 -5 -5 -5 -5 -4 -4 -4 -3 -2 -1 ------- Run | Yrd Mat Mat Min Exi Min Mat Fac Gar Fac Was Fac Low Low Dat Pro Fac Was Fac Upp Upp War Pro Fac DSF Res Res Acc Peak Influence 1328 | . 158 480 176 . . 717 229 1105 885 309 1328 . . . . 18 18 885 . . . . 413 292 166 162 49 Initial 579 | . . 66 175 . . . 229 160 579 309 76 . . . . 18 6 . . . . . 413 292 164 93 3 Average 325 | . 58 252 58 . . 353 229 709 692 263 655 . . . . 18 10 342 . . . . 413 292 164 55 29 Maximum Alert Level 4 | . . 2 . . . 3 1 4 3 1 4 . . . . . . 3 . . . . 2 1 . . . Low Security (%) 49 | 100 100 41 100 . 100 32 . 2 . 22 20 . . . . 100 100 50 . . . . . . 100 100 100 Level 1 15 | . . 40 . . . 15 100 14 . 77 12 . . . . . . 3 . . . . . 100 . . . Level 2 19 | . . 18 . . . 39 . 40 57 . 26 . . . . . . 23 . . . . 100 . . . . Level 3 10 | . . . . . . 12 . 30 42 . 7 . . . . . . 22 . . . . . . . . . Level 4 4 | . . . . . . . . 12 . . 32 . . . . . . . . . . . . . . . . Level 5 . | . . . . . . . . . . . . . . . . . . . . . . . . . . . . High Security . | . . . . . . . . . . . . . . . . . . . . . . . . . . . . Max Security . | . . . . . . . . . . . . . . . . . . . . . . . . . . . . Squads Dispatched 35 | . . 2 1 . . 5 . . 2 . 10 . . . . . . 12 . . . . . 1 . 1 1 Investigation 7 | . . 1 . . . 2 . . . . 2 . . . . . . 1 . . . . . . . . 1 Extermination 6 | . . . . . . . . . . . 2 . . . . . . 4 . . . . . . . . . Reinforcement 18 | . . 1 1 . . 2 . . 2 . 6 . . . . . . 4 . . . . . 1 . 1 . Assault 1 | . . . . . . 1 . . . . . . . . . . . . . . . . . . . . . Garrison 3 | . . . . . . . . . . . . . . . . . . 3 . . . . . . . . . Intercept . | . . . . . . . . . . . . . . . . . . . . . . . . . . . . Searches Triggered . | . . . . . . . . . . . . . . . . . . . . . . . . . . . . Data Miner Redirects 1 | . . . . . . . . . . . . . . . . . . 1 . . . . . . . . . Construction Impeded 2 | . . . 1 . . . . . 1 . . . . . . . . . . . . . . . . . . Haulers Reinforced 1 | . . . . . . . . . . . . . . . . . . 1 . . . . . . . . . Active Scanning Responses . | . . . . . . . . . . . . . . . . . . . . . . . . . . . . Cargo Convoy Interrupts 1 | . . . . . . . . . . . . . . . . . . 1 . . . . . . . . . Stealth | -11 -10 -9 -9 -9 -8 -8 -7 -7 -6 -6 -6 -6 -6 -6 -5 -5 -5 -5 -5 -5 -5 -4 -4 -4 -3 -2 -1 --------- Run | Yrd Mat Mat Min Exi Min Mat Fac Gar Fac Was Fac Low Low Dat Pro Fac Was Fac Upp Upp War Pro Fac DSF Res Res Acc Distress Signals 27 | . . 3 . . . 4 . . . . . . . . . . . 2 . . 5 . . . . 11 2 Communications Jammed 26 | . . . . . . . . . . . . . . . . . . 26 . . . . . . . . . Distress Signals 21 | . . . . . . . . . . . . . . . . . . 21 . . . . . . . . . Times Spotted 291 | . 5 39 . . . 45 . 24 12 . 32 10 7 . 6 . . 65 7 . 9 27 . . . 3 . Peak Tracking Total 10 | . 3 6 . . . 7 . 7 5 . 6 7 4 . 5 . . 10 4 . 4 6 . . . 1 1 Tactical Retreats 23 | . . 5 . . . 3 . . . . 1 1 . . . . . 5 2 . . 6 . . . . . Traps | -11 -10 -9 -9 -9 -8 -8 -7 -7 -6 -6 -6 -6 -6 -6 -5 -5 -5 -5 -5 -5 -5 -4 -4 -4 -3 -2 -1 ------- Run | Yrd Mat Mat Min Exi Min Mat Fac Gar Fac Was Fac Low Low Dat Pro Fac Was Fac Upp Upp War Pro Fac DSF Res Res Acc Traps Triggered 10 | . . 1 . . . 1 . 4 1 . . . . . . 1 . 2 . . . . . . . . . Indirectly . | . . . . . . . . . . . . . . . . . . . . . . . . . . . . Trap Hack Attempts . | . . . . . . . . . . . . . . . . . . . . . . . . . . . . Triggered . | . . . . . . . . . . . . . . . . . . . . . . . . . . . . Disarmed . | . . . . . . . . . . . . . . . . . . . . . . . . . . . . Reprogrammed . | . . . . . . . . . . . . . . . . . . . . . . . . . . . . Reused . | . . . . . . . . . . . . . . . . . . . . . . . . . . . . Traps Extracted . | . . . . . . . . . . . . . . . . . . . . . . . . . . . . Installed . | . . . . . . . . . . . . . . . . . . . . . . . . . . . . Triggered 18 | . . . . . . . . . . . . 1 . . . . . . 2 . 15 . . . . . . Machines | -11 -10 -9 -9 -9 -8 -8 -7 -7 -6 -6 -6 -6 -6 -6 -5 -5 -5 -5 -5 -5 -5 -4 -4 -4 -3 -2 -1 ---------- Run | Yrd Mat Mat Min Exi Min Mat Fac Gar Fac Was Fac Low Low Dat Pro Fac Was Fac Upp Upp War Pro Fac DSF Res Res Acc Machines Disabled 41 | . 2 8 . . . 3 . 7 2 . 16 1 . . . . . 1 . 1 . . . . . . . Max in Single Turn 12 | . 1 6 . . . 1 . 2 1 . 12 1 . . . . . 1 . 1 . . . . . . . Garrison Access 2 | . . . . . . 1 . . . . . . . . . . . . . . . . . . . 1 . Garrison Relay 4 | . . . . . . . . 4 . . . . . . . . . . . . . . . . . . . Machines Repaired . | . . . . . . . . . . . . . . . . . . . . . . . . . . . . Machines Dismantled . | . . . . . . . . . . . . . . . . . . . . . . . . . . . . Machines Sabotaged . | . . . . . . . . . . . . . . . . . . . . . . . . . . . . Overloaded Fab Kills . | . . . . . . . . . . . . . . . . . . . . . . . . . . . . Hacking | -11 -10 -9 -9 -9 -8 -8 -7 -7 -6 -6 -6 -6 -6 -6 -5 -5 -5 -5 -5 -5 -5 -4 -4 -4 -3 -2 -1 --------- Run | Yrd Mat Mat Min Exi Min Mat Fac Gar Fac Was Fac Low Low Dat Pro Fac Was Fac Upp Upp War Pro Fac DSF Res Res Acc Machines Accessed 62 | . 4 10 . 2 . 9 1 2 . . 8 1 . 4 . 1 . 6 . 1 8 . 1 . 1 1 2 Terminals 33 | . 4 8 . . . 7 . 2 . . 5 . . . . . . 3 . . . . 1 . 1 . 2 Fabricators 3 | . . . . . . . . . . . 1 . . . . 1 . 1 . . . . . . . . . Repair Stations 4 | . . . . . . 1 . . . . 2 . . . . . . 1 . . . . . . . . . Recycling Units . | . . . . . . . . . . . . . . . . . . . . . . . . . . . . Scanalyzers 2 | . . 2 . . . . . . . . . . . . . . . . . . . . . . . . . Garrison Access 4 | . . . . . . 1 1 . . . . . . . . . . 1 . . . . . . . 1 . Total Hacks 199 | . 23 37 . 2 . 33 1 3 . . 22 1 . 33 . 3 . 14 . 1 17 . 1 . 1 2 5 Successful 133 | . 14 24 . 2 . 16 1 1 . . 15 1 . 33 . 2 . 3 . 1 17 . 1 . . . 2 Failed 66 | . 9 13 . . . 17 . 2 . . 7 . . . . 1 . 11 . . . . . . 1 2 3 Catastrophic 13 | . 1 . . . . 4 . 1 . . . . . . . 1 . 4 . . . . . . 1 1 . Database Lockouts . | . . . . . . . . . . . . . . . . . . . . . . . . . . . . Manual 75 | . 11 17 . 1 . 25 . 3 . . 12 . . . . 1 . 4 . . 1 . . . . . . Terminals 105 | . 23 28 . . . 30 . 3 . . 9 . . . . . . 5 . . . . 1 . 1 . 5 Fabricators 6 | . . . . . . . . . . . 2 . . . . 3 . 1 . . . . . . . . . Repair Stations 20 | . . . . . . 2 . . . . 11 . . . . . . 7 . . . . . . . . . Recycling Units . | . . . . . . . . . . . . . . . . . . . . . . . . . . . . Scanalyzers 9 | . . 9 . . . . . . . . . . . . . . . . . . . . . . . . . Garrison Access 5 | . . . . . . 1 1 . . . . . . . . . . 1 . . . . . . . 2 . Terminal Hacks 80 | . 8 9 . 2 . 5 . . . . 1 1 . 33 . . . . . 1 17 . 1 . . . 2 Record 25 | . . . . 1 . . . . . . . . . 11 . . . . . 1 11 . . . . . 1 Part Schematic 13 | . . 1 . . . . . . . . . . . 12 . . . . . . . . . . . . . Robot Schematic 7 | . . . . . . . . . . . . . . 7 . . . . . . . . . . . . . Robot Analysis 1 | . . 1 . . . . . . . . . . . . . . . . . . . . . . . . . Prototype ID Bank 12 | . 3 1 . . . . . . . . . . . 3 . . . . . . 5 . . . . . . Open Door 3 | . . . . . . . . . . . . 1 . . . . . . . . 1 . . . . . 1 Open DSF 1 | . . . . . . . . . . . . . . . . . . . . . . . 1 . . . . Level Access Points 1 | . . . . . . 1 . . . . . . . . . . . . . . . . . . . . . Branch Access Points 2 | . 1 . . . . . . . . . 1 . . . . . . . . . . . . . . . . Terminal Index 3 | . 1 1 . . . 1 . . . . . . . . . . . . . . . . . . . . . Alert Level 2 | . . 1 . . . 1 . . . . . . . . . . . . . . . . . . . . . Unreport Threat 3 | . . 1 . . . 2 . . . . . . . . . . . . . . . . . . . . . Locate Traps 2 | . 1 1 . . . . . . . . . . . . . . . . . . . . . . . . . Dispatch Records 1 | . . 1 . . . . . . . . . . . . . . . . . . . . . . . . . Maintenance Status 1 | . 1 . . . . . . . . . . . . . . . . . . . . . . . . . . Hauler Manifests 2 | . 1 1 . . . . . . . . . . . . . . . . . . . . . . . . . Derelict Proto ID Bank 1 | . . . . 1 . . . . . . . . . . . . . . . . . . . . . . . Fabricator Hacks 3 | . . . . . . . . . . . 1 . . . . 2 . . . . . . . . . . . Load Schematic 2 | . . . . . . . . . . . 1 . . . . 1 . . . . . . . . . . . Build 1 | . . . . . . . . . . . . . . . . 1 . . . . . . . . . . . Repair Station Hacks 10 | . . . . . . 2 . . . . 5 . . . . . . 3 . . . . . . . . . Scan Component 6 | . . . . . . 1 . . . . 3 . . . . . . 2 . . . . . . . . . Repair 4 | . . . . . . 1 . . . . 2 . . . . . . 1 . . . . . . . . . Recycling Unit Hacks . | . . . . . . . . . . . . . . . . . . . . . . . . . . . . Scanalyzer 8 | . . 8 . . . . . . . . . . . . . . . . . . . . . . . . . Insert Component 4 | . . 4 . . . . . . . . . . . . . . . . . . . . . . . . . Analyze 4 | . . 4 . . . . . . . . . . . . . . . . . . . . . . . . . Garrison Access Hacks 2 | . . . . . . 1 1 . . . . . . . . . . . . . . . . . . . . Unlock Access 2 | . . . . . . 1 1 . . . . . . . . . . . . . . . . . . . . Unauthorized Hacks 30 | . 6 7 . . . 8 . 1 . . 8 . . . . . . . . . . . . . . . . Terminals 28 | . 6 7 . . . 8 . 1 . . 6 . . . . . . . . . . . . . . . . Botnet 8 | . 2 2 . . . 2 . . . . 2 . . . . . . . . . . . . . . . . Skim 19 | . 4 5 . . . 6 . . . . 4 . . . . . . . . . . . . . . . . Override 1 | . . . . . . . . 1 . . . . . . . . . . . . . . . . . . . Fabricators 1 | . . . . . . . . . . . 1 . . . . . . . . . . . . . . . . Recompile 1 | . . . . . . . . . . . 1 . . . . . . . . . . . . . . . . Repair Stations 1 | . . . . . . . . . . . 1 . . . . . . . . . . . . . . . . Patch 1 | . . . . . . . . . . . 1 . . . . . . . . . . . . . . . . Recycling Units . | . . . . . . . . . . . . . . . . . . . . . . . . . . . . Scanalyzers . | . . . . . . . . . . . . . . . . . . . . . . . . . . . . Garrison Access . | . . . . . . . . . . . . . . . . . . . . . . . . . . . . Data Cores Recovered . | . . . . . . . . . . . . . . . . . . . . . . . . . . . . Used . | . . . . . . . . . . . . . . . . . . . . . . . . . . . . Hacking Detections 42 | . 3 10 . . . 9 . 2 . . 7 . . . . 1 . 6 . . . . . . 1 1 2 Full Trace Events 3 | . . . . . . 1 . . . . . . . . . . . 1 . . . . . . . . 1 Feedback Events 1 | . . . . . . 1 . . . . . . . . . . . . . . . . . . . . . Corruption 1 | . . . . . . 1 . . . . . . . . . . . . . . . . . . . . . Feedback Blocked . | . . . . . . . . . . . . . . . . . . . . . . . . . . . . Robot Schematics Acquired 7 | . . . . . . . . . . . . . . 7 . . . . . . . . . . . . . Robots Built . | . . . . . . . . . . . . . . . . . . . . . . . . . . . . Authchips . | . . . . . . . . . . . . . . . . . . . . . . . . . . . . Time . | . . . . . . . . . . . . . . . . . . . . . . . . . . . . Total Robot Build Rating . | . . . . . . . . . . . . . . . . . . . . . . . . . . . . Part Schematics Acquired 16 | . . 4 . . . . . . . . . . . 12 . . . . . . . . . . . . . Parts Built 1 | . . . . . . . . . . . . . . . . 1 . . . . . . . . . . . Authchips 1 | . . . . . . . . . . . . . . . . 1 . . . . . . . . . . . Time 84 | . . . . . . . . . . . . . . . . 84 . . . . . . . . . . . Total Part Build Rating 6 | . . . . . . . . . . . . . . . . 6 . . . . . . . . . . . Parts Repaired 4 | . . . . . . 1 . . . . 2 . . . . . . 1 . . . . . . . . . Time 222 | . . . . . . 32 . . . . 134 . . . . . . 56 . . . . . . . . . Parts Recycled . | . . . . . . . . . . . . . . . . . . . . . . . . . . . . Recycled Matter . | . . . . . . . . . . . . . . . . . . . . . . . . . . . . Retrieved Matter . | . . . . . . . . . . . . . . . . . . . . . . . . . . . . Retrieved Components . | . . . . . . . . . . . . . . . . . . . . . . . . . . . . Parts Scanalyzed 3 | . . 3 . . . . . . . . . . . . . . . . . . . . . . . . . Part Schematics Acquired 3 | . . 3 . . . . . . . . . . . . . . . . . . . . . . . . . Parts Damaged . | . . . . . . . . . . . . . . . . . . . . . . . . . . . . Bothacking | -11 -10 -9 -9 -9 -8 -8 -7 -7 -6 -6 -6 -6 -6 -6 -5 -5 -5 -5 -5 -5 -5 -4 -4 -4 -3 -2 -1 ------------ Run | Yrd Mat Mat Min Exi Min Mat Fac Gar Fac Was Fac Low Low Dat Pro Fac Was Fac Upp Upp War Pro Fac DSF Res Res Acc Used RIF Installer . | . . . . . . . . . . . . . . . . . . . . . . . . . . . . Robots Hacked . | . . . . . . . . . . . . . . . . . . . . . . . . . . . . Non-combat . | . . . . . . . . . . . . . . . . . . . . . . . . . . . . Combat . | . . . . . . . . . . . . . . . . . . . . . . . . . . . . Robot Hacks Applied . | . . . . . . . . . . . . . . . . . . . . . . . . . . . . Relay Couplers Released 23 | . . . . . . 2 . 14 . . . . . . . . . 4 . . . . . . . 3 . Machine Destruction 19 | . . . . . . 2 . 14 . . . . . . . . . . . . . . . . . 3 . Programmers 4 | . . . . . . . . . . . . . . . . . . 4 . . . . . . . . . Fabnet Peak Effective % . | . . . . . . . . . . . . . . . . . . . . . . . . . . . . Robots Rewired 5 | . . . . . . . . . . . . . . . . . . . . . 5 . . . . . . Allies Hacked . | . . . . . . . . . . . . . . . . . . . . . . . . . . . . Hacks Repelled . | . . . . . . . . . . . . . . . . . . . . . . . . . . . . Allies | -11 -10 -9 -9 -9 -8 -8 -7 -7 -6 -6 -6 -6 -6 -6 -5 -5 -5 -5 -5 -5 -5 -4 -4 -4 -3 -2 -1 -------- Run | Yrd Mat Mat Min Exi Min Mat Fac Gar Fac Was Fac Low Low Dat Pro Fac Was Fac Upp Upp War Pro Fac DSF Res Res Acc Total Allies 29 | . . . 2 . . . . 2 . 20 . . . . . . . . . . 5 . . . . . . Largest Group 20 | . . . 2 2 . . . 2 . 20 20 2 1 . . . . . . . 5 . . . . . . Highest-Rated Group 783 | . . . 42 42 . . . 190 . 783 783 54 17 . . . . . . . 269 . . . . . . Highest-Rated Ally 95 | . . . 31 31 . . . 95 . 50 50 32 17 . . . . . . . 65 . . . . . . Warlord Squad Rendezvous 1 | . . . . . . . . . . . . . . . . . . 1 . . . . . . . . . Ranger 1 | . . . . . . . . . . . . . . . . . . 1 . . . . . . . . . Total Orders 4 | . . . . . . . . . . . . 1 . . . . . 2 . . 1 . . . . . . GUARD 1 | . . . . . . . . . . . . . . . . . . . . . 1 . . . . . . EXPLORE 2 | . . . . . . . . . . . . 1 . . . . . 1 . . . . . . . . . RETURN 1 | . . . . . . . . . . . . . . . . . . 1 . . . . . . . . . Ally Attacks 280 | . . . 2 . . . . 19 . . 226 2 . . . . . . . . 31 . . . . . . Total Damage 6756 | . . . 22 . . . . 902 . . 4824 12 . . . . . . . . 996 . . . . . . Kills 38 | . . . . . . . . 10 . . 23 . . . . . . . . . 5 . . . . . . Allies Corrupted 2 | . . . . . . . . . . . 1 . . . . . . . . . 1 . . . . . . Allies Melted 3 | . . . . . . . . . . . . . . . . . . . . . . . . . . 3 . Intel | -11 -10 -9 -9 -9 -8 -8 -7 -7 -6 -6 -6 -6 -6 -6 -5 -5 -5 -5 -5 -5 -5 -4 -4 -4 -3 -2 -1 ------- Run | Yrd Mat Mat Min Exi Min Mat Fac Gar Fac Was Fac Low Low Dat Pro Fac Was Fac Upp Upp War Pro Fac DSF Res Res Acc Robot Analysis Total 1 | . . 1 . . . . . . . . . . . . . . . . . . . . . . . . . Derelict Logs Recovered 12 | . . . . . . . . . . . . 2 2 . 3 . . . 2 1 . 2 . . . . . Drone Launches 3 | . . . . . . . . . . . . 1 . . . . . 2 . . . . . . . . . Drone Recoveries 1 | . . . . . . . . . . . . . . . . . . 1 . . . . . . . . . Exploration | -11 -10 -9 -9 -9 -8 -8 -7 -7 -6 -6 -6 -6 -6 -6 -5 -5 -5 -5 -5 -5 -5 -4 -4 -4 -3 -2 -1 ------------- Run | Yrd Mat Mat Min Exi Min Mat Fac Gar Fac Was Fac Low Low Dat Pro Fac Was Fac Upp Upp War Pro Fac DSF Res Res Acc Turns Passed 17503 | 8 256 1898 1198 610 48 1512 93 1364 235 517 1540 488 574 122 667 187 626 2522 146 61 853 508 38 65 79 998 290 Spaces Moved 10662 | 7 175 970 151 314 30 670 55 797 74 295 784 238 328 77 370 61 377 1009 386 224 642 663 135 111 89 1260 370 Core . | . . . . . . . . . . . . . . . . . . . . . . . . . . . . Treads 6539 | . . 925 151 314 30 670 55 797 74 295 784 238 328 77 370 61 377 993 . . . . . . . . . Legs 227 | 7 175 45 . . . . . . . . . . . . . . . . . . . . . . . . . Wheels . | . . . . . . . . . . . . . . . . . . . . . . . . . . . . Hover . | . . . . . . . . . . . . . . . . . . . . . . . . . . . . Flight 3896 | . . . . . . . . . . . . . . . . . . 16 386 224 642 663 135 111 89 1260 370 Fastest Speed 18 | 120 120 160 160 160 160 156 148 145 151 148 155 160 160 160 160 160 160 104 24 24 18 22 22 21 30 18 18 Average Speed 109 | 120 120 161 160 192 160 156 155 148 151 151 155 160 160 160 160 160 160 165 24 24 22 23 22 22 30 21 18 Slowest Speed 250 | 120 120 190 160 240 160 160 157 151 151 155 160 160 160 160 160 160 160 250 24 24 100 26 22 30 30 30 18 Overloaded Moves . | . . . . . . . . . . . . . . . . . . . . . . . . . . . . Propulsion Burnouts . | . . . . . . . . . . . . . . . . . . . . . . . . . . . . Robots Hopped 19 | . . . . . . . . . . . . . . . . . . . . 1 6 4 2 . . 5 1 Cave-ins Triggered 1 | . . . . . . . . 1 . . . . . . . . . . . . . . . . . . . Exploration Rate (%) 47 | 1 37 80 30 69 20 59 2 76 3 97 34 93 56 69 58 3 95 29 52 53 66 84 6 84 4 52 9 Regions Visited 27 Branch Regions 11 Pre-discovered Areas 7 | . . 1 . 1 . . . . . . . 1 1 1 1 . . . . . 1 . . . . . . Known Exits Taken 12 | . . 1 . . 1 1 1 . . . 1 . 1 . . . . . 1 1 . 1 1 . 1 1 . Unknown Exits Taken 9 | 1 1 . 1 1 . . . . . . . 1 . 1 1 . . 1 . . 1 . . . . . . Scrap Searched 12 | . . . . . . . . . . . . 1 2 . 4 . . . 2 . . 3 . . . . . Spaces Dug 76 | . . . 1 . . . . 1 . . 3 10 . . 12 . 6 12 . . . 2 . . 1 21 7 Terrain Destroyed 298 | . . 42 1 . . 33 . 21 16 . 42 17 6 . 15 . 6 68 . . . 2 . . 1 21 7 Melee 20 | . . . . . . . . . . . . . . . . . . . . . . 2 . . 1 12 5 Projectile 186 | . . 11 1 . . 33 . 21 16 . 19 17 6 . 1 . 6 44 . . . . . . . 9 2 AOE 92 | . . 31 . . . . . . . . 23 . . . 14 . . 24 . . . . . . . . . Terrain Rammed . | . . . . . . . . . . . . . . . . . . . . . . . . . . . . Walls Destroyed . | . . . . . . . . . . . . . . . . . . . . . . . . . . . . Machines Disabled . | . . . . . . . . . . . . . . . . . . . . . . . . . . . . Actions | -11 -10 -9 -9 -9 -8 -8 -7 -7 -6 -6 -6 -6 -6 -6 -5 -5 -5 -5 -5 -5 -5 -4 -4 -4 -3 -2 -1 --------- Run | Yrd Mat Mat Min Exi Min Mat Fac Gar Fac Was Fac Low Low Dat Pro Fac Was Fac Upp Upp War Pro Fac DSF Res Res Acc Total 15632 | 6 202 1171 1105 320 30 973 62 901 145 373 1058 311 357 76 421 151 397 1637 441 228 1345 973 140 153 137 1942 577 Wait 3600 | . 3 30 947 . . 146 . 16 13 62 178 29 8 . 12 83 . 283 26 . 628 285 . 8 44 616 183 Move 10604 | 6 174 969 150 313 29 669 54 795 74 294 783 237 327 76 369 61 376 1008 385 221 631 655 130 110 88 1253 367 Hop 12 | . . . . . . . . . . . . . . . . . . . . 1 4 3 2 . . 1 1 Pick Up 150 | . 7 24 2 4 . 12 . 4 3 3 11 3 . . 3 1 5 46 6 . 4 . 1 2 . 6 3 Fast Attach 99 | . 2 4 . . . 3 . 7 . 2 5 . . . . . 3 16 7 2 15 6 3 11 . 11 2 Attach 65 | . . 7 . 1 . 3 2 2 2 . . 1 . . 4 3 . 28 3 1 2 . 1 . 1 2 2 Detach 16 | . . 1 . . . . . . . . . . . . 1 1 . 7 1 1 1 . 1 . 1 . 1 Swap 100 | . 1 16 2 1 1 11 4 2 . 2 3 3 4 . 2 2 1 27 1 . 2 . . 4 1 6 4 Drop 209 | . 5 36 2 1 . 16 2 11 . 10 16 3 . . 3 . 5 23 12 1 21 2 2 18 . 16 4 Fire 682 | . 10 84 1 . . 113 . 64 53 . 57 35 18 . 27 . 5 197 . 1 . . . . . 15 2 Melee 48 | . . . . . . . . . . . . . . . . . . . . . . 22 . . 2 16 8 Ram . | . . . . . . . . . . . . . . . . . . . . . . . . . . . . Kick . | . . . . . . . . . . . . . . . . . . . . . . . . . . . . Crush 5 | . . . 1 . . . . . . . 2 . . . . . . 2 . . . . . . . . . Escape Stasis . | . . . . . . . . . . . . . . . . . . . . . . . . . . . . Rewire 42 | . . . . . . . . . . . 3 . . . . . 2 . . . 37 . . . . . . Trap . | . . . . . . . . . . . . . . . . . . . . . . . . . . . . Miscellaneous . | . . . . . . . . . . . . . . . . . . . . . . . . . . . . Route ------- -11/Scrapyard -10/Materials (discovered 2 exits: *Mat / Min) -9/Materials (discovered 6 exits: *Mat x3 / *Min x2 / *Sto) -9/Mines -9/Exiles -8/Mines -8/Materials (discovered 3 exits: *Fac x3) -7/Factory (discovered 3 exits: Fac / Low / Gar) -7/Garrison (discovered 3 exits: *Fac x3) -6/Factory -6/Waste -6/Factory (discovered 3 exits: *Fac / *Low x2) -6/Lower Caves -6/Lower Caves (discovered 2 exits: *Fac / *Dat) -6/Data Miner -5/Proximity Caves -5/Factory -5/Waste -5/Factory (discovered 3 exits: *Fac x2 / [*Upp]) -5/Upper Caves -5/Upper Caves (discovered 2 exits: *Fac / *War) -5/Warlord -4/Proximity Caves -4/Factory -4/DSF -3/Research (discovered 4 exits: *Res x2 / Tes x2) -2/Research (discovered 2 exits: *Acc / *Qua) -1/Access To Epsilon Eridani History --------- Turn | Location | Event 1 | -11/Scrapyard | Discovered new exit (range 3) 9 | -11/Scrapyard | Entered Materials 124 | -10/Materials | Identified exit to Mines 125 | -10/Materials | Discovered new exit (range 16) 265 | -10/Materials | Entered another Materials area 265 | -9/Materials | Evolved 2 slots: Propulsion x1, Utility x1 307 | -9/Materials | Build established: Mutant 380 | -9/Materials | Discovered new exit (range 13) 1280 | -9/Materials | Discovered new exit (range 6) 1563 | -9/Materials | Discovered new exit (range 16) 1603 | -9/Materials | Identified exit to Storage 1631 | -9/Materials | Identified exit to Materials 1651 | -9/Materials | Learned Storage stockpile data 1661 | -9/Materials | Learned Storage security intel 1663 | -9/Materials | Identified exit to Mines 1675 | -9/Materials | Learned location of 1 exit from Storage 2163 | -9/Materials | Entered Mines 2164 | -9/Mines | Assembled infested the area 3304 | -9/Mines | A weapon hastily lodged in a ceiling crevice suddenly fell to the ground 3346 | -9/Mines | Discovered new exit (range 5) 3361 | -9/Mines | Entered Exiles 3361 | -9/Exiles | Accompanied by 2 allies 3391 | -9/Exiles | Led the pair of lost Derelicts to a safe place 3400 | -9/Exiles | Met 8R-AWN 3424 | -9/Exiles | Met EX-HEX 3472 | -9/Exiles | Met EX-BIN 3491 | -9/Exiles | Aligned with FarCom system 3493 | -9/Exiles | Given EX-Vault access code 3531 | -9/Exiles | Opened EX-Vault 3542 | -9/Exiles | Found Supersonic Drone Bay 3574 | -9/Exiles | Warned to stay clear of 0b10 Research branches 3618 | -9/Exiles | Met EX-DEC 3759 | -9/Exiles | Learned location of Zion (-7) 3944 | -9/Exiles | Discovered new exit (range 14) 3971 | -9/Exiles | Left Exiles lab with Supersonic Drone Bay 3971 | -9/Exiles | Entered Mines 4002 | -8/Mines | Discovered exit to Materials (range 12) 4019 | -8/Mines | Entered Materials 4019 | -8/Materials | Evolved 2 slots: Propulsion x1, Utility x1 4461 | -8/Materials | Identified exit to Garrison 4622 | -8/Materials | Repaired Imp. Treads 4769 | -8/Materials | Discovered new exit (range 16) 5209 | -8/Materials | Learned 2 Storage zone layouts 5272 | -8/Materials | Identified exit to Factory 5281 | -8/Materials | Learned Storage stockpile data 5343 | -8/Materials | Learned location of 1 exit from Extension 5438 | -8/Materials | Learned 2 Lower Caves zone layouts 5471 | -8/Materials | Learned location of 2 exits from Factory 5514 | -8/Materials | Learned Storage stockpile data 5531 | -8/Materials | Entered Factory 5531 | -7/Factory | Evolved 2 slots: Propulsion x1, Utility x1 5532 | -7/Factory | Identified exit to Lower Caves 5532 | -7/Factory | Identified exit to Factory 5622 | -7/Factory | Identified exit to Garrison 5624 | -7/Factory | Entered Garrison 5732 | -7/Garrison | Triggered checkpoint 5749 | -7/Garrison | Found embedded Infiltrators 5754 | -7/Garrison | Garrison Relay disabled 5765 | -7/Garrison | Garrison Relay disabled 5849 | -7/Garrison | Triggered checkpoint 6001 | -7/Garrison | Discovered exit to Factory (range 10) 6073 | -7/Garrison | Spotted B-75 Beast 6077 | -7/Garrison | Destroyed B-75 Beast 6134 | -7/Garrison | Crushed by falling debris 6400 | -7/Garrison | Triggered checkpoint 6452 | -7/Garrison | Triggered checkpoint 6501 | -7/Garrison | Garrison Relay disabled 6791 | -7/Garrison | Garrison Relay disabled 6988 | -7/Garrison | Entered Factory 6988 | -6/Factory | Evolved 2 slots: Power x1, Utility x1 7216 | -6/Factory | Destroyed 7 combat bots 7223 | -6/Factory | Sucked down chute 7223 | -6/Factory | Entered Waste 7224 | -6/Waste | Joined by Warlord forces that had cleared the area 7533 | -6/Waste | Discovered new exit (range 14) 7740 | -6/Waste | Entered Factory 7740 | -6/Factory | Accompanied by 20 allies 7786 | -6/Factory | Build established: Scavenger-Mutant 8521 | -6/Factory | Discovered new exit (range 8) 8627 | -6/Factory | Identified exit to Lower Caves 8691 | -6/Factory | Lost 5 allies 8715 | -6/Factory | Build established: Mutant 8792 | -6/Factory | Lost 5 allies 9049 | -6/Factory | Repaired Hvy. Treads 9128 | -6/Factory | Repaired Broken Hvy. Treads 9280 | -6/Factory | Entered Lower Caves 9280 | -6/Lower Caves | Accompanied by 2 allies 9286 | -6/Lower Caves | Met a Warlord Commander 9287 | -6/Lower Caves | Learned location of Warlord (-5) 9288 | -6/Lower Caves | Warlord Commander delivered Encrypted Comm Array 9295 | -6/Lower Caves | Found Encrypted Comm Array 9309 | -6/Lower Caves | Discovered new exit (range 107) 9367 | -6/Lower Caves | Learned Factory garrison access intel 9420 | -6/Lower Caves | Attracted the attention of an 0b10 checkpoint 9478 | -6/Lower Caves | Learned location of 1 exit from Factory 9768 | -6/Lower Caves | Entered another Lower Caves area 9768 | -6/Lower Caves | Accompanied by 1 ally 9768 | -6/Lower Caves | Discovered new exit (range 10) 10110 | -6/Lower Caves | Identified exit to Data Miner 10203 | -6/Lower Caves | Encountered a Warlord checkpoint 10342 | -6/Lower Caves | Entered Data Miner 10342 | -6/Data Miner | Discovered new exit (range 6) 10373 | -6/Data Miner | Met Data Miner 10406 | -6/Data Miner | Learned location of Section 7 (-2) 10406 | -6/Data Miner | Acquired the access code to Warlord's prototype stash 10427 | -6/Data Miner | Received God Mode back door access code from Data Miner 10464 | -6/Data Miner | Entered Proximity Caves 10590 | -5/Proximity Caves | Learned Factory terminal intel 10754 | -5/Proximity Caves | Spotted B-75 Beast 10877 | -5/Proximity Caves | Destroyed B-75 Beast 11070 | -5/Proximity Caves | Discovered new exit (range 14) 11125 | -5/Proximity Caves | Learned Factory security intel 11131 | -5/Proximity Caves | Entered Factory 11131 | -5/Factory | Evolved 2 slots: Propulsion x1, Utility x1 11132 | -5/Factory | Identified exit to Factory 11134 | -5/Factory | Loaded intel: 28 terminal locations 11135 | -5/Factory | Loaded intel: 3 garrison access locations 11247 | -5/Factory | Fabricated Hvy. Gatling Laser (x1) 11318 | -5/Factory | Sucked down chute 11318 | -5/Factory | Entered Waste 11318 | -5/Waste | The area was eerily silent 11905 | -5/Waste | Discovered new exit (range 12) 11944 | -5/Waste | Entered Factory 12444 | -5/Factory | Discovered exit to Factory (range 8) 12638 | -5/Factory | Found Unknown Device 12638 | -5/Factory | Identified Launcher Loader 13013 | -5/Factory | Joined by Warlord Ranger squad 13090 | -5/Factory | Repaired Hvy. Treads 13111 | -5/Factory | Incoming investigation squad redirected 13175 | -5/Factory | P-80 Master assimilated allied OL-G6O(h) 13259 | -5/Factory | Destroyed 10 combat bots 13290 | -5/Factory | Cargo convoy interrupted 13318 | -5/Factory | Garrison activated, responded to threat 13320 | -5/Factory | System corruption reached 10% 13326 | -5/Factory | Destroyed 7 combat bots 13372 | -5/Factory | Lost 7 parts (2p1n3u1w) 13583 | -5/Factory | Build established: Scavenger-Mutant 13628 | -5/Factory | Discovered exit to Factory (range 9) 13675 | -5/Factory | Lost 3 parts (2n1u) 13818 | -5/Factory | Core integrity fell below 50% 13873 | -5/Factory | Lost 3 parts (1p1n1w) 14373 | -5/Factory | Discovered new exit (range 13) 14452 | -5/Factory | Lost 5 parts (1p3n1u) 14466 | -5/Factory | Entered Upper Caves 14517 | -5/Upper Caves | Identified exit to Upper Caves 14518 | -5/Upper Caves | Learned Factory non-interactive machine intel 14612 | -5/Upper Caves | Entered another Upper Caves area 14617 | -5/Upper Caves | Discovered exit to Factory (range 6) 14629 | -5/Upper Caves | Found Alien Artifact 14629 | -5/Upper Caves | Identified Dimensional Node Initializer 14629 | -5/Upper Caves | Initialized slip node 14646 | -5/Upper Caves | Identified exit to Warlord 14673 | -5/Upper Caves | Entered Warlord 14682 | -5/Warlord | System corruption cleaned by Quarantine Array 14707 | -5/Warlord | Learned Armory terminal intel 14707 | -5/Warlord | Learned 4 Command zone layouts 14707 | -5/Warlord | Learned Testing emergency access door positions 14711 | -5/Warlord | Met Warlord 14713 | -5/Warlord | Opened Warlord's prototype stash 14717 | -5/Warlord | Found Prototype Device 14717 | -5/Warlord | Identified Exp. Cloaking Device 14734 | -5/Warlord | Found Prototype Device 14734 | -5/Warlord | Identified Thermal Barrier 14736 | -5/Warlord | Warlord's base attacked by MAIN.C 14739 | -5/Warlord | Found Prototype Reactor 14739 | -5/Warlord | Identified Vortex Chain Reactor 14779 | -5/Warlord | Build established: Scavenger-Sprinter 14784 | -5/Warlord | Found Prototype Energy Cannon 14785 | -5/Warlord | Identified Vortex Cannon 14787 | -5/Warlord | Found Vortex Cannon 15035 | -5/Warlord | Lost 6 allies 15086 | -5/Warlord | Warlord forces counterattacked 15143 | -5/Warlord | Build established: Commander-Sprinter 15207 | -5/Warlord | Spotted Striker 15226 | -5/Warlord | Allies destroyed Striker 15358 | -5/Warlord | Spotted Striker 15411 | -5/Warlord | Warlord base infiltrated, sounded retreat 15497 | -5/Warlord | Spotted Executioner 15521 | -5/Warlord | Discovered new exit (range 15) 15526 | -5/Warlord | Entered Proximity Caves 15533 | -4/Proximity Caves | Learned location of 1 exit from Research 15688 | -4/Proximity Caves | Lost 3 parts (2p1n) 15696 | -4/Proximity Caves | Core integrity fell below 20% 15766 | -4/Proximity Caves | Spotted B-86 Titan 15829 | -4/Proximity Caves | Spotter reported a threat 15922 | -4/Proximity Caves | Learned location of 2 exits from Research 15953 | -4/Proximity Caves | Spotter reported a threat 16033 | -4/Proximity Caves | Discovered exit to Factory (range 5) 16034 | -4/Proximity Caves | Entered Factory 16034 | -4/Factory | Evolved 2 slots: Propulsion x1, Utility x1 16035 | -4/Factory | Loaded intel: 218 non-interactive machine locations 16072 | -4/Factory | Identified exit to DSF 16072 | -4/Factory | Entered DSF 16112 | -4/DSF | Additional patrols routed to DSF 16121 | -4/DSF | Discovered new exit (range 21) 16137 | -4/DSF | Entered Research 16137 | -3/Research | Evolved 2 slots: Propulsion x1, Utility x1 16138 | -3/Research | Identified exit to Research 16138 | -3/Research | Identified exit to Testing 16159 | -3/Research | Discovered exit to Research (range 11) 16216 | -3/Research | Entered another Research area 16216 | -2/Research | Warlord forces began assault on 0b10 16216 | -2/Research | Evolved 2 slots: Utility x2 16241 | -2/Research | Distinguished unit "Viscera Detail" dispatched to help 16311 | -2/Research | Lost 5 allies 16326 | -2/Research | Research machine network offline 16513 | -2/Research | Build established: Hacker-Ninja 16673 | -2/Research | Borebot progress halted 16692 | -2/Research | Discovered new exit (range 20) 16697 | -2/Research | Identified exit to Quarantine 16763 | -2/Research | Found Prototype Processor 16763 | -2/Research | Identified Exp. Melee Analysis Suite 16870 | -2/Research | Borebot progress halted 16982 | -2/Research | Borebot progress halted 17199 | -2/Research | Spotted B-90 Cyclops 17207 | -2/Research | Discovered new exit (range 14) 17214 | -2/Research | Identified exit to Access 17214 | -2/Research | Entered Access 17214 | -1/Access | Evolved 2 slots: Power x1, Utility x1 17352 | -1/Access | Spotted B-99 Colossus 17352 | -1/Access | Spotted B-99 Colossus 17387 | -1/Access | Discovered new exit (range 6) 17388 | -1/Access | Identified exit to Surface 17504 | *** | Escaped! Last Messages --------------- 17292_ Dropped Hyp. Railgun. 17292_ Acquired Hyp. Railgun. 17293_ Dropped Hyp. Railgun. 17294_ Acquired ECM Suite. 17319_ Dropped Enh. Nova Cannon. 17369_ Sneak attack on R-10 Processor. 17369_ Destroyed Com. Wheel. 17373_ Sneak attack on R-10 Processor. 17373_ R-10 Processor destroyed. 17373_ K-01 Serf collects debris. 17376_ Acquired 40 matter. 17376_ Acquired Imp. Ion Engine. 17379_ K-01 Serf collects debris. 17387_ Connecting with Terminal... >>Open(Door) Sealed Barrier opened. 17387_ The Access Shell folds into the floor. 17387_ EXIT=FOUND 17388_ EXIT=IDENTIFIED: SURFACE 17393_ K-01 Serf cleans the Terminal. Map ----- +----------------------------------------------------+ | ?###????#?#??# ? ?? #?#??###?##?#?# ???#???????? | | ???? ??? ? ?# "?"?? ?? ? ?????? ? ??????? | | ??? ??? ??###?? """ ??? ? ? ? ?? ?? +? ?????? | | ?? ? ???##?# ??? ???# ? ?? ??? ????? | | ?? ??#?#?#?? ##? ??? ? ? ? ?? ???? | | ??? ????#?## ? ??# ? ??? ??# ??"??? | | ?? ? ?? #?#?#####??##??###?######?#?#? #??? ??? | | ?? ? ? ?#####????#########?########## ? ? ??? | | ?? ??? ?###?#??#??################## #? ???? | | ??? ?? ?####?######?###############? # ??? ? ? | | ?? ? ############################# ##+#????? | | ?????? ### k ?? | | ? ? ? ?## R k g ? ? | | ????####?#?# ####### ""#####/#?###### ### | | #??# ? ?##?# #?##### ""### ### ##? | | ??? ? ??## ####### ""###? ### ?## | | ? #?## ####?## T### ? " ### ## | | ???# ? #### =####### ""### """ ?### ## | | ?##?# ?#####= ####### ""### """ ### ## | | ?#??# ?####!%####### ""### " ### ?# | | ???## ?#####=!###### ## ??? ??# ? ## | | #?### ##### ####### ### ? ## | | ?##?# #?### ####### ### " ## | | #??## ##### ####### ###? """ ? ## ?# | | ???## ##### ####### ### """? #?#+#### | | ?##?# != ####### @" ### " ?# ""?T | | ##### == ###?### "" ### # ?""" | | ??#?# = ####### ##?? # | | ?#??# ####### ### ? # | | #???# ####### ### # " | | ##### #######""""""""""### ? ? # "" | | #######""""""""""### #? "?" | | #######""""""""""####?####### " | | #######""""""""""##########?# ?? | | ############## ############ ??? | | # #### BB BB ####?####### | | # #### BB BB ############ ? | | * + #?## ################### | | ?# =#### ################### | | # #### ?################### | | ? ?? # #### ############## | | ?? ? ? # ####### ##############?## #### | | ?#??? ?# ]####### ################# #?## | | ??? ? ################# ################# #### | | ##?? ? ################# ################# ###? | | ##?? ? ## #######?## #####?########### # | | #??? ? ## ########## ###########?##### # | | #?#? ?## "######### # ####?### #? ? | | ??#? ## # * # # ########?#??? | | ??#?? ?# # # # " #######??# ? | +----------------------------------------------------+ Best States ------------- Heat Dissipation 128 Energy Generation 55 Energy Capacity 1085 Matter Stores 300 Matter Capacity 800 Sight Range 22 Robot Scan Range 15 Terrain Scan Range 24 Terrain Scan Density 210 Jamming Range 14 Cloak Strength 4 Armor Coverage 1200 Resistance: TH 15 Resistance: EM 25 Propulsion Shielding 66 Utility Shielding 33 Weapon Cycling 20 Phase Shifting 15 Evasion (%) 80 Targeting Accuracy 8 Launcher Accuracy 30 Recoil Reduction 6 Offensive Hacking 40 Defensive Hacking 12 Authchip Count 1 Item Schematics ----------------- Arm. Wheel | -9/Materials | Hacked Hacking Suite | -9/Materials | Scanalyzed Utility Shielding | -9/Materials | Scanalyzed Hvy. Assault Cannon | -9/Materials | Scanalyzed Combat Drone Bay | -6/Data Miner | Free Lgt. Regenerative Plating | -6/Data Miner | Free Enh. Armored Leg | -6/Data Miner | Free Prc. Matter Filter | -6/Data Miner | Free Hvy. Gatling Laser | -6/Data Miner | Free Imp. Gyrokinetic Inverter | -6/Data Miner | Free Adv. Particle Charger | -6/Data Miner | Free Force Lance | -6/Data Miner | Free Imp. Corruption Screen | -6/Data Miner | Free Adv. Cryofiber Web | -6/Data Miner | Free Imp. Fusion Compressor | -6/Data Miner | Free Impulse Thruster Array | -6/Data Miner | Free Robot Schematics ------------------ B-60 Warrior | -6/Data Miner | Free B-48 Gladiator | -6/Data Miner | Free P-60 Hacker | -6/Data Miner | Free R-10 Processor | -6/Data Miner | Free G-67 Veteran | -6/Data Miner | Free G-50 Soldier | -6/Data Miner | Free M-22 Extractor | -6/Data Miner | Free Fabricated ------------ Hvy. Gatling Laser | x1 | -5/Factory | Authchip Alien Tech Used ----------------- Dimensional Node Initializer Achievements -------------- None Challenges ------------ None Game ------ Seed XenonStasisClaw Manual? 0 Play Time 03:02:59 Cumulative 194.0 hours Start 2024.09.28 @ 19:09:06 End 2024.09.29 @ 00:20:30 Sessions 3 Manual Loads 0 Difficulty Rogue Special Mode None Game No. 111 Rogue 111 Adventurer 0 Explorer 0 Win Type 0 Total 7 Types 7/0/0/0/0/0/0/0/0 Lore% 65 Gallery% 69 Achievement% 60 Wizard Run 0 Options --------- Layout 1 ASCII 0 Keyboard 0 Movement Numpad Keybinds 0 Fullscreen 1 Font 24/Smallcaps Map View 50x35 Zoom Use 0% Tactical HUD 1 Map Filters NONE Filters NONE Steam 1 RUN: 09def2b8-84dc-4084-87cf-8d4d98e337d1